[Event "XVI Calvia Amateur Open 2019"]
[Site "Calvia"]
[Date "2019.10.06"]
[Round "2.4"]
[White "Visser, Henk-Jan"]
[Black "Gaitan Moyano, Juan"]
[Result "0-1"]
[ECO "B90"]
[WhiteElo "2184"]
[BlackElo "1981"]
[Annotator "ChessBase"]
[PlyCount "104"]
[EventDate "2019.10.05"]
[EventType "swiss"]
[EventCountry "ESP"]
[SourceTitle "playchess.com"]
[Source "ChessBase"]
[SourceQuality "1"]
[TimeControl "40/5400+30:900+30"]

1. e4 {[%emt 0:00:00]} c5 {[%emt 0:15:34]} 2. Nf3 {[%emt 0:00:00]} d6 {[%emt 0:00:42]} 3. d4 {[%emt 0:00:04]} cxd4 {[%emt 0:00:17]} 4. Nxd4 {[%emt 0:00:12]} Nf6 {[%emt 0:00:08]} 5. Nc3 {[%emt 0:00:11]} a6 {[%emt 0:00:24]} 6. Be3 {[%emt 0:00:15]} e5 {[%emt 0:00:39]} 7. Nb3 {[%emt 0:00:13]} Be6 {[%emt 0:01:26]} 8. f3 {[%emt 0:00:17]} h5 {[%emt 0:00:37]} 9. Qd2 {[%emt 0:01:45]} Nbd7 {[%emt 0:01:25]} 10. Nd5 {[%emt 0:01:13]} Nxd5 {[%emt 0:03:11]} 11. exd5 {[%emt 0:00:14]} Bf5 {[%emt 0:00:04]} 12. Na5 {[%emt 0:17:38]} Qc7 {[%emt 0:07:38]} 13. c4 {[%emt 0:01:34]} Be7 {[%emt 0:01:38]} 14. Be2 {[%emt 0:00:24]} Bh4+ {[%emt 0:04:55]} 15. g3 {[%emt 0:03:23]} Bd8 {[%emt 0:02:04]} 16. b4 {[%emt 0:01:24]} h4 {[%emt 0:03:03]} 17. g4 {[%emt 0:04:44]} Bg6 {[%emt 0:00:12]} 18. O-O {[%emt 0:01:37]} O-O {[%emt 0:02:37]} 19. Rac1 {[%emt 0:06:43]} Qb8 {[%emt 0:14:26]} 20. Bd3 {[%emt 0:11:51]} Bxd3 {[%emt 0:06:20]} 21. Qxd3 {[%emt 0:00:08]} Bxa5 {[%emt 0:07:13]} 22. bxa5 {[%emt 0:00:06]} Qc7 {[%emt 0:00:33]} 23. Qa3 {[%emt 0:21:31]} Rac8 {[%emt 0:04:59]} 24. Bg5 {[%emt 0:03:46]} f6 {[%emt 0:04:50]} 25. Bxh4 {[%emt 0:00:30]} Qc5+ {[%emt 0:01:28]} 26. Qxc5 {[%emt 0:00:08]} Rxc5 {[%emt 0:00:01]} 27. Rb1 {[%emt 0:16:57]} Rxa5 {[%emt 0:06:49]} 28. Rxb7 {[%emt 0:00:10]} Rd8 {[%emt 0:02:31]} 29. Rc7 {[%emt 0:05:19]} Rxa2 {[%emt 0:00:48]} 30. Rb1 {[%emt 0:00:14]} Nc5 {[%emt 0:02:11]} 31. Bf2 {[%emt 0:01:36]} Nd3 {[%emt 0:03:50]} 32. Bg3 {[%emt 0:00:08]} Rb2 {[%emt 0:01:30]} 33. Ra1 {[%emt 0:00:42]} Nc5 {[%emt 0:01:00]} 34. h4 {[%emt 0:01:17]} Rc2 {[%emt 0:00:28]} 35. h5 {[%emt 0:00:35]} Rxc4 {[%emt 0:00:36]} 36. Ra3 {[%emt 0:00:36]} Rb8 {[%emt 0:00:27]} 37. Ra2 {[%emt 0:00:30]} Rc1+ {[%emt 0:01:01]} 38. Kg2 {[%emt 0:00:18]} Rd1 {[%emt 0:00:44]} 39. Bf2 {[%emt 0:00:38]} Rxd5 {[%emt 0:00:17]} 40. Bxc5 {[%emt 0:00:00]} Rxc5 {[%emt 0:00:00]} 41. Ra7 {[%emt 0:07:39]} a5 {[%emt 0:03:22]} 42. Kg3 {[%emt 0:00:57]} Rb3 {[%emt 0:04:33]} 43. g5 {[%emt 0:06:02]} fxg5 {[%emt 0:01:19]} 44. h6 {[%emt 0:00:36]} gxh6 {[%emt 0:00:58]} 45. Kg4 {[%emt 0:02:26]} Rc4+ {[%emt 0:07:16]} 46. Kf5 {[%emt 0:00:55]} Rxf3+ {[%emt 0:00:51]} 47. Kg6 {[%emt 0:00:21]} Rcf4 {[%emt 0:01:02]} 48. Rg7+ {[%emt 0:00:40]} Kf8 {[%emt 0:00:24]} 49. Rc2 {[%emt 0:00:13]} Rf6+ {[%emt 0:00:21]} 50. Kh7 {[%emt 0:00:20]} Rf7 {[%emt 0:00:20]} 51. Rc7 {[%emt 0:00:56]} Rxc7 {[%emt 0:00:07]} 52. Rxc7 {[%emt 0:00:16]} Rf7+ {[%emt 0:00:04]} 0-1

[Event "XVI Calvia Amateur Open 2019"]
[Site "Calvia"]
[Date "2019.10.06"]
[Round "2.5"]
[White "Grichkevitch, Gilles"]
[Black "Gallego Bergada, Antoni"]
[Result "1/2-1/2"]
[ECO "B06"]
[WhiteElo "1989"]
[BlackElo "2177"]
[Annotator "ChessBase"]
[PlyCount "75"]
[EventDate "2019.10.05"]
[EventType "swiss"]
[EventCountry "ESP"]
[SourceTitle "playchess.com"]
[Source "ChessBase"]
[SourceQuality "1"]
[TimeControl "40/5400+30:900+30"]

1. e4 {[%emt 0:00:00]} g6 {[%emt 0:00:00]} 2. d4 {[%emt 0:00:07]} Bg7 {[%emt 0:00:00]} 3. Nc3 {[%emt 0:00:06]} d6 {[%emt 0:00:00]} 4. Bg5 {[%emt 0:00:22]} a6 {[%emt 0:01:52]} 5. Qd2 {[%emt 0:00:50]} b5 {[%emt 0:02:31]} 6. f4 {[%emt 0:02:06]} Bb7 {[%emt 0:02:58]} 7. Nf3 {[%emt 0:03:42]} Nf6 {[%emt 0:21:50]} 8. e5 {[%emt 0:00:53]} Ne4 {[%emt 0:01:28]} 9. Nxe4 {[%emt 0:00:28]} Bxe4 {[%emt 0:00:04]} 10. c4 {[%emt 0:05:12]} c6 {[%emt 0:10:58]} 11. Be2 {[%emt 0:10:07]} O-O {[%emt 0:07:04]} 12. O-O {[%emt 0:01:16]} f6 {[%emt 0:03:21]} 13. exf6 {[%emt 0:02:18]} exf6 {[%emt 0:00:21]} 14. Bh4 {[%emt 0:00:31]} Nd7 {[%emt 0:11:56]} 15. a4 {[%emt 0:03:06]} bxc4 {[%emt 0:04:36]} 16. Bxc4+ {[%emt 0:00:24]} d5 {[%emt 0:00:08]} 17. Be2 {[%emt 0:06:52]} Qb6 {[%emt 0:02:39]} 18. a5 {[%emt 0:00:36]} Qb7 {[%emt 0:03:10]} 19. b4 {[%emt 0:09:30]} Rfc8 {[%emt 0:05:20]} 20. Be1 {[%emt 0:05:41]} Bf8 {[%emt 0:01:08]} 21. Nh4 {[%emt 0:04:32]} Rab8 {[%emt 0:01:54]} 22. Ra4 {[%emt 0:03:13]} Be7 {[%emt 0:01:36]} 23. g4 {[%emt 0:02:27]} Nf8 {[%emt 0:01:20]} 24. f5 {[%emt 0:00:45]} g5 {[%emt 0:00:58]} 25. Nf3 {[%emt 0:01:56]} Bd6 {[%emt 0:00:38]} 26. Bg3 {[%emt 0:08:31]} Bxg3 {[%emt 0:01:02]} 27. hxg3 {[%emt 0:00:06]} Ra8 {[%emt 0:02:31]} 28. Kf2 {[%emt 0:01:00]} Qd7 {[%emt 0:00:54]} 29. Ra2 {[%emt 0:02:39]} h5 {[%emt 0:00:12]} 30. Nh2 {[%emt 0:02:37]} Qd6 {[%emt 0:02:01]} 31. gxh5 {[%emt 0:02:51]} Bxf5 {[%emt 0:00:31]} 32. Ng4 {[%emt 0:00:36]} Bxg4 {[%emt 0:01:09]} 33. Bxg4 {[%emt 0:00:09]} Re8 {[%emt 0:00:28]} 34. Re1 {[%emt 0:03:47]} Rab8 {[%emt 0:03:00]} 35. Rxe8 {[%emt 0:01:04]} Rxe8 {[%emt 0:00:06]} 36. Bf5 {[%emt 0:00:46]} Kg7 {[%emt 0:01:52]} 37. Ra1 {[%emt 0:03:19]} Rb8 {[%emt 0:02:15]} 38. Rb1 {[%emt 0:00:27]} 1/2-1/2

[Event "XVI Calvia Amateur Open 2019"]
[Site "Calvia"]
[Date "2019.10.06"]
[Round "2.6"]
[White "Ermachenko, Manuel"]
[Black "Cramling Bellon, Anna"]
[Result "1-0"]
[ECO "C67"]
[WhiteElo "1968"]
[BlackElo "2164"]
[Annotator "ChessBase"]
[PlyCount "76"]
[EventDate "2019.10.05"]
[EventType "swiss"]
[EventCountry "ESP"]
[SourceTitle "playchess.com"]
[Source "ChessBase"]
[SourceQuality "1"]
[TimeControl "40/5400+30:900+30"]

1. e4 {[%emt 0:00:00]} e5 {[%emt 0:00:00]} 2. Nf3 {[%emt 0:00:00]} Nc6 {[%emt 0:00:00]} 3. Bb5 {[%emt 0:00:00]} Nf6 {[%emt 0:00:33]} 4. O-O {[%emt 0:00:00]} Nxe4 {[%emt 0:00:51]} 5. d4 {[%emt 0:00:00]} Nd6 {[%emt 0:00:42]} 6. dxe5 {[%emt 0:00:00]} Nxb5 {[%emt 0:14:53]} 7. a4 {[%emt 0:00:17]} Nbd4 {[%emt 0:21:27]} 8. Nxd4 {[%emt 0:00:07]} Nxd4 {[%emt 0:00:04]} 9. Qxd4 {[%emt 0:00:09]} d6 {[%emt 0:05:18]} 10. Bf4 {[%emt 0:13:42]} d5 {[%emt 0:12:51]} 11. c4 {[%emt 0:15:29]} dxc4 {[%emt 0:06:54]} 12. Qxc4 {[%emt 0:00:53]} c6 {[%emt 0:00:28]} 13. Nc3 {[%emt 0:01:33]} Be6 {[%emt 0:00:06]} 14. Qe4 {[%emt 0:03:07]} Be7 {[%emt 0:00:37]} 15. Rfd1 {[%emt 0:00:11]} Qa5 {[%emt 0:06:31]} 16. Qf3 {[%emt 0:26:25]} O-O {[%emt 0:01:54]} 17. Qg3 {[%emt 0:09:13]} Qb4 {[%emt 0:06:03]} 18. Re1 {[%emt 0:05:22]} Bf5 {[%emt 0:02:04]} 19. Re2 {[%emt 0:04:26]} Rad8 {[%emt 0:01:16]} 20. Rae1 {[%emt 0:01:06]} Rd4 {[%emt 0:07:16]} 21. Bg5 {[%emt 0:02:55]} Rg4 {[%emt 0:06:14]} 22. Bxe7 {[%emt 0:00:07]} Qxe7 {[%emt 0:00:02]} 23. Qf3 {[%emt 0:01:27]} Qg5 {[%emt 0:01:33]} 24. g3 {[%emt 0:01:44]} Rd8 {[%emt 0:03:07]} 25. Ne4 {[%emt 0:03:27]} Bxe4 {[%emt 0:00:06]} 26. Rxe4 {[%emt 0:00:04]} h5 {[%emt 0:01:27]} 27. e6 {[%emt 0:01:26]} fxe6 {[%emt 0:00:12]} 28. Rxe6 {[%emt 0:00:11]} Qd5 {[%emt 0:00:56]} 29. Qe3 {[%emt 0:04:31]} Rb4 {[%emt 0:00:28]} 30. Re5 {[%emt 0:01:15]} Qd2 {[%emt 0:00:32]} 31. Re8+ {[%emt 0:00:51]} Kh7 {[%emt 0:00:01]} 32. Qc5 {[%emt 0:01:02]} Rd5 {[%emt 0:00:56]} 33. Qf8 {[%emt 0:00:30]} Rd6 {[%emt 0:00:36]} 34. Qg8+ {[%emt 0:01:27]} Kg6 {[%emt 0:00:24]} 35. R8e6+ {[%emt 0:00:20]} Rxe6 {[%emt 0:00:15]} 36. Rxe6+ {[%emt 0:00:13]} Kf5 {[%emt 0:00:39]} 37. Qf7+ {[%emt 0:00:10]} Kg4 {[%emt 0:00:39]} 38. f3+ {[%emt 0:00:23]} Kg5 {[%emt 0:01:05]} 1-0

[Event "XVI Calvia Amateur Open 2019"]
[Site "Calvia"]
[Date "2019.10.07"]
[Round "3.1"]
[White "Scherer, Helmut"]
[Black "Amengual Perello, Jordi"]
[Result "1/2-1/2"]
[ECO "C13"]
[WhiteElo "2278"]
[BlackElo "2087"]
[Annotator "ChessBase"]
[PlyCount "52"]
[EventDate "2019.10.05"]
[EventType "swiss"]
[EventCountry "ESP"]
[SourceTitle "playchess.com"]
[Source "ChessBase"]
[SourceQuality "1"]
[TimeControl "40/5400+30:900+30"]

1. e4 {[%emt 0:00:00]} e6 {[%emt 0:00:00]} 2. d4 {[%emt 0:00:11]} d5 {[%emt 0:00:08]} 3. Nc3 {[%emt 0:00:42]} Nf6 {[%emt 0:00:32]} 4. Bg5 {[%emt 0:01:34]} dxe4 {[%emt 0:03:01]} 5. Nxe4 {[%emt 0:01:04]} Be7 {[%emt 0:01:01]} 6. Bxf6 {[%emt 0:07:24]} gxf6 {[%emt 0:00:38]} 7. Nf3 {[%emt 0:01:22]} f5 {[%emt 0:00:53]} 8. Nc3 {[%emt 0:01:32]} a6 {[%emt 0:01:32]} 9. Be2 {[%emt 0:07:07]} Nd7 {[%emt 0:07:24]} 10. Qd2 {[%emt 0:09:12]} b5 {[%emt 0:03:14]} 11. O-O {[%emt 0:10:41]} Bb7 {[%emt 0:02:40]} 12. Rad1 {[%emt 0:10:08]} O-O {[%emt 0:04:33]} 13. Qe3 {[%emt 0:02:37]} Nb6 {[%emt 0:06:16]} 14. Ne5 {[%emt 0:03:32]} b4 {[%emt 0:06:32]} 15. Nb1 {[%emt 0:01:28]} Nd5 {[%emt 0:00:34]} 16. Qb3 {[%emt 0:05:27]} Rb8 {[%emt 0:07:47]} 17. Bf3 {[%emt 0:02:29]} c5 {[%emt 0:04:27]} 18. dxc5 {[%emt 0:09:31]} Bxc5 {[%emt 0:01:33]} 19. Nd2 {[%emt 0:00:51]} a5 {[%emt 0:07:50]} 20. Ndc4 {[%emt 0:08:28]} Ra8 {[%emt 0:20:58]} 21. a4 {[%emt 0:02:11]} Qe7 {[%emt 0:01:01]} 22. Rfe1 {[%emt 0:01:09]} Rfd8 {[%emt 0:01:48]} 23. Nd3 {[%emt 0:02:14]} Bd4 {[%emt 0:05:01]} 24. Nde5 {[%emt 0:01:30]} Bc5 {[%emt 0:00:22]} 25. Nd3 {[%emt 0:01:38]} Bd4 {[%emt 0:00:11]} 26. Nde5 {[%emt 0:01:22]} Bc5 {[%emt 0:00:10]} 1/2-1/2

[Event "XVI Calvia Amateur Open 2019"]
[Site "Calvia"]
[Date "2019.10.07"]
[Round "3.2"]
[White "Guski, Dietmar"]
[Black "Massanet Massanet, Sebastian"]
[Result "1/2-1/2"]
[ECO "C14"]
[WhiteElo "2052"]
[BlackElo "2252"]
[Annotator "ChessBase"]
[PlyCount "166"]
[EventDate "2019.10.05"]
[EventType "swiss"]
[EventCountry "ESP"]
[SourceTitle "playchess.com"]
[Source "ChessBase"]
[SourceQuality "1"]
[TimeControl "40/5400+30:900+30"]

1. e4 {[%emt 0:00:00]} e6 {[%emt 0:06:22]} 2. d4 {[%emt 0:00:00]} d5 {[%emt 0:00:05]} 3. Nc3 {[%emt 0:00:00]} Nf6 {[%emt 0:00:11]} 4. Bg5 {[%emt 0:00:11]} Be7 {[%emt 0:02:36]} 5. e5 {[%emt 0:00:54]} Nfd7 {[%emt 0:00:16]} 6. h4 {[%emt 0:00:38]} Bxg5 {[%emt 0:00:50]} 7. hxg5 {[%emt 0:00:22]} Qxg5 {[%emt 0:00:07]} 8. Nh3 {[%emt 0:00:44]} Qe7 {[%emt 0:00:27]} 9. Qg4 {[%emt 0:10:10]} g6 {[%emt 0:00:54]} 10. Nf4 {[%emt 0:02:00]} Nc6 {[%emt 0:02:05]} 11. O-O-O {[%emt 0:01:26]} h5 {[%emt 0:02:43]} 12. Qg3 {[%emt 0:05:20]} Nb6 {[%emt 0:01:44]} 13. Bb5 {[%emt 0:07:46]} Bd7 {[%emt 0:02:20]} 14. Bxc6 {[%emt 0:09:41]} Bxc6 {[%emt 0:00:32]} 15. Nd3 {[%emt 0:01:12]} Nc4 {[%emt 0:02:50]} 16. f4 {[%emt 0:05:27]} O-O-O {[%emt 0:00:25]} 17. Qf2 {[%emt 0:01:22]} b6 {[%emt 0:03:23]} 18. Rh3 {[%emt 0:04:21]} Bb7 {[%emt 0:03:47]} 19. Rdh1 {[%emt 0:01:17]} Rhg8 {[%emt 0:02:01]} 20. Rh4 {[%emt 0:01:41]} Ba6 {[%emt 0:03:47]} 21. g4 {[%emt 0:02:32]} hxg4 {[%emt 0:00:26]} 22. Rxg4 {[%emt 0:00:05]} Na5 {[%emt 0:01:16]} 23. Rg3 {[%emt 0:04:14]} Bxd3 {[%emt 0:05:10]} 24. Rxd3 {[%emt 0:01:02]} Rdf8 {[%emt 0:09:23]} 25. Rh7 {[%emt 0:07:41]} Nc6 {[%emt 0:04:42]} 26. a3 {[%emt 0:03:25]} Qe8 {[%emt 0:03:50]} 27. Rdh3 {[%emt 0:18:44]} Ne7 {[%emt 0:01:59]} 28. Nd1 {[%emt 0:00:44]} g5 {[%emt 0:08:01]} 29. Ne3 {[%emt 0:02:25]} gxf4 {[%emt 0:03:47]} 30. Qxf4 {[%emt 0:00:33]} Rg1+ {[%emt 0:01:09]} 31. Kd2 {[%emt 0:01:39]} Qa4 {[%emt 0:02:36]} 32. Rxf7 {[%emt 0:05:10]} Rxf7 {[%emt 0:00:29]} 33. Qxf7 {[%emt 0:00:03]} Qxd4+ {[%emt 0:00:58]} 34. Ke2 {[%emt 0:00:07]} Ng6 {[%emt 0:05:21]} 35. Qxe6+ {[%emt 0:01:46]} Kb8 {[%emt 0:06:17]} 36. Qg8+ {[%emt 0:00:21]} Kb7 {[%emt 0:00:09]} 37. Qxd5+ {[%emt 0:00:14]} Qxd5 {[%emt 0:00:06]} 38. Nxd5 {[%emt 0:00:06]} Rg5 {[%emt 0:03:11]} 39. Re3 {[%emt 0:01:45]} Nxe5 {[%emt 0:00:18]} 40. Nf4 {[%emt 0:00:00]} Nc4 {[%emt 0:00:00]} 41. Re7 {[%emt 0:12:03]} Nxb2 {[%emt 0:10:12]} 42. Rxc7+ {[%emt 0:00:00]} Kxc7 {[%emt 0:01:15]} 43. Ne6+ {[%emt 0:00:00]} Kc6 {[%emt 0:00:25]} 44. Nxg5 {[%emt 0:00:00]} Kd5 {[%emt 0:03:27]} 45. Kd2 {[%emt 0:00:00]} Nc4+ {[%emt 0:00:10]} 46. Kc3 {[%emt 0:00:00]} Nxa3 {[%emt 0:00:26]} 47. Kb3 {[%emt 0:00:00]} Nc4 {[%emt 0:00:37]} 48. Nf3 {[%emt 0:01:20]} a5 {[%emt 0:01:37]} 49. Ne1 {[%emt 0:00:46]} b5 {[%emt 0:02:54]} 50. Nd3 {[%emt 0:01:31]} Kd4 {[%emt 0:02:57]} 51. Nf4 {[%emt 0:01:03]} Nd2+ {[%emt 0:00:36]} 52. Kb2 {[%emt 0:00:31]} Kc4 {[%emt 0:00:36]} 53. Nd3 {[%emt 0:00:40]} Nf3 {[%emt 0:00:54]} 54. Nc1 {[%emt 0:00:25]} a4 {[%emt 0:00:56]} 55. Nd3 {[%emt 0:02:12]} b4 {[%emt 0:01:10]} 56. Nf4 {[%emt 0:00:22]} Ne1 {[%emt 0:02:25]} 57. Ne2 {[%emt 0:00:36]} a3+ {[%emt 0:02:15]} 58. Kb1 {[%emt 0:00:19]} Kb5 {[%emt 0:02:49]} 59. Nd4+ {[%emt 0:00:54]} Ka4 {[%emt 0:00:33]} 60. Nb3 {[%emt 0:00:26]} Nf3 {[%emt 0:00:43]} 61. Nc5+ {[%emt 0:01:26]} Kb5 {[%emt 0:00:11]} 62. Nb3 {[%emt 0:01:01]} Kc4 {[%emt 0:00:16]} 63. Nc1 {[%emt 0:01:09]} Nd2+ {[%emt 0:01:36]} 64. Ka1 {[%emt 0:00:11]} Nf3 {[%emt 0:00:48]} 65. Kb1 {[%emt 0:00:13]} Nd4 {[%emt 0:00:18]} 66. Na2 {[%emt 0:01:04]} Nb5 {[%emt 0:00:39]} 67. Nc1 {[%emt 0:00:08]} Nc3+ {[%emt 0:00:31]} 68. Ka1 {[%emt 0:00:06]} Na4 {[%emt 0:00:34]} 69. Ne2 {[%emt 0:00:19]} Nc5 {[%emt 0:00:33]} 70. Ka2 {[%emt 0:00:17]} Ne4 {[%emt 0:00:11]} 71. Ka1 {[%emt 0:00:13]} Ng5 {[%emt 0:00:44]} 72. Ka2 {[%emt 0:00:21]} Ne4 {[%emt 0:00:23]} 73. Ka1 {[%emt 0:00:09]} Nc3 {[%emt 0:00:34]} 74. Nc1 {[%emt 0:00:18]} Nd5 {[%emt 0:00:32]} 75. Ne2 {[%emt 0:00:15]} Ne3 {[%emt 0:00:30]} 76. Kb1 {[%emt 0:00:11]} Kd5 {[%emt 0:00:29]} 77. Nc1 {[%emt 0:00:35]} Kd4 {[%emt 0:00:36]} 78. Ne2+ {[%emt 0:00:19]} Ke4 {[%emt 0:00:09]} 79. Nc1 {[%emt 0:00:09]} Kf3 {[%emt 0:00:51]} 80. Nd3 {[%emt 0:00:17]} Nd5 {[%emt 0:00:21]} 81. Ka2 {[%emt 0:00:33]} Ke3 {[%emt 0:00:16]} 82. Nxb4 {[%emt 0:00:24]} Nxb4+ {[%emt 0:00:06]} 83. Kxa3 {[%emt 0:00:05]} Nxc2+ {[%emt 0:00:05]} 1/2-1/2

[Event "XVI Calvia Amateur Open 2019"]
[Site "Calvia"]
[Date "2019.10.07"]
[Round "3.3"]
[White "Tscharotschkin, Michael"]
[Black "Planas Gene, Juan"]
[Result "1-0"]
[ECO "D02"]
[WhiteElo "2198"]
[BlackElo "2028"]
[Annotator "ChessBase"]
[PlyCount "63"]
[EventDate "2019.10.05"]
[EventType "swiss"]
[EventCountry "ESP"]
[SourceTitle "playchess.com"]
[Source "ChessBase"]
[SourceQuality "1"]
[TimeControl "40/5400+30:900+30"]

1. d4 {[%emt 0:00:00]} Nf6 {[%emt 0:00:00]} 2. Bf4 {[%emt 0:00:00]} d5 {[%emt 0:00:52]} 3. e3 {[%emt 0:00:00]} e6 {[%emt 0:00:27]} 4. Nd2 {[%emt 0:00:49]} Bd6 {[%emt 0:00:23]} 5. Bg3 {[%emt 0:00:16]} c5 {[%emt 0:00:14]} 6. c3 {[%emt 0:00:10]} Nc6 {[%emt 0:00:44]} 7. Ngf3 {[%emt 0:00:59]} O-O {[%emt 0:09:26]} 8. Bd3 {[%emt 0:00:51]} b6 {[%emt 0:03:11]} 9. Ne5 {[%emt 0:01:26]} Bb7 {[%emt 0:05:07]} 10. f4 {[%emt 0:02:34]} Ne7 {[%emt 0:02:31]} 11. Qf3 {[%emt 0:02:13]} Ne8 {[%emt 0:05:41]} 12. Bh4 {[%emt 0:07:09]} f6 {[%emt 0:03:54]} 13. Qh3 {[%emt 0:01:13]} Bc8 {[%emt 0:11:39]} 14. Bxh7+ {[%emt 0:07:47]} Kxh7 {[%emt 0:01:33]} 15. Bxf6+ {[%emt 0:03:23]} Kg8 {[%emt 0:01:28]} 16. Bxe7 {[%emt 0:01:47]} Bxe7 {[%emt 0:03:09]} 17. Ng6 {[%emt 0:02:10]} Nf6 {[%emt 0:14:44]} 18. Qh8+ {[%emt 0:02:17]} Kf7 {[%emt 0:01:18]} 19. Ne5+ {[%emt 0:00:58]} Ke8 {[%emt 0:00:41]} 20. Qxg7 {[%emt 0:00:20]} Qc7 {[%emt 0:03:45]} 21. Ndf3 {[%emt 0:04:12]} Bd7 {[%emt 0:05:06]} 22. Ng6 {[%emt 0:03:37]} Rf7 {[%emt 0:09:42]} 23. Qh8+ {[%emt 0:00:23]} Bf8 {[%emt 0:00:30]} 24. Nfe5 {[%emt 0:00:49]} Qd6 {[%emt 0:03:41]} 25. Nxf7 {[%emt 0:05:29]} Kxf7 {[%emt 0:00:08]} 26. Ne5+ {[%emt 0:00:45]} Ke7 {[%emt 0:00:47]} 27. O-O {[%emt 0:01:20]} Be8 {[%emt 0:06:30]} 28. Rf3 {[%emt 0:04:26]} Nd7 {[%emt 0:05:56]} 29. Qh4+ {[%emt 0:01:01]} Nf6 {[%emt 0:00:01]} 30. Rg3 {[%emt 0:03:36]} Qd8 {[%emt 0:01:19]} 31. Rg8 {[%emt 0:02:37]} Bf7 {[%emt 0:00:29]} 32. Nc6+ {[%emt 0:00:28]} 1-0

[Event "XVI Calvia Amateur Open 2019"]
[Site "Calvia"]
[Date "2019.10.07"]
[Round "3.4"]
[White "Gavrish, Leonid"]
[Black "Hutchinson, Paul A"]
[Result "1-0"]
[ECO "D13"]
[WhiteElo "2034"]
[BlackElo "2139"]
[Annotator "ChessBase"]
[PlyCount "97"]
[EventDate "2019.10.05"]
[EventType "swiss"]
[EventCountry "ESP"]
[SourceTitle "playchess.com"]
[Source "ChessBase"]
[SourceQuality "1"]
[TimeControl "40/5400+30:900+30"]

1. d4 {[%emt 0:00:00]} d5 {[%emt 0:00:00]} 2. c4 {[%emt 0:00:00]} c6 {[%emt 0:00:00]} 3. cxd5 {[%emt 0:00:00]} cxd5 {[%emt 0:00:00]} 4. Nc3 {[%emt 0:00:00]} Nf6 {[%emt 0:00:03]} 5. Bf4 {[%emt 0:00:00]} a6 {[%emt 0:01:10]} 6. e3 {[%emt 0:00:10]} Nc6 {[%emt 0:00:05]} 7. Bd3 {[%emt 0:00:08]} e6 {[%emt 0:01:30]} 8. Nf3 {[%emt 0:00:19]} Be7 {[%emt 0:02:00]} 9. Rc1 {[%emt 0:00:28]} Nh5 {[%emt 0:01:44]} 10. Be5 {[%emt 0:03:08]} Nxe5 {[%emt 0:11:14]} 11. Nxe5 {[%emt 0:08:03]} Nf6 {[%emt 0:00:21]} 12. O-O {[%emt 0:01:27]} O-O {[%emt 0:08:26]} 13. f4 {[%emt 0:01:12]} g6 {[%emt 0:10:13]} 14. h4 {[%emt 0:13:42]} Bd6 {[%emt 0:09:30]} 15. g4 {[%emt 0:04:52]} Ne8 {[%emt 0:19:30]} 16. h5 {[%emt 0:08:21]} Qh4 {[%emt 0:06:50]} 17. Kg2 {[%emt 0:04:26]} Qe7 {[%emt 0:10:24]} 18. hxg6 {[%emt 0:09:07]} fxg6 {[%emt 0:00:32]} 19. Ne2 {[%emt 0:09:08]} Bd7 {[%emt 0:00:58]} 20. Rh1 {[%emt 0:03:28]} Nf6 {[%emt 0:00:59]} 21. g5 {[%emt 0:10:29]} Bxe5 {[%emt 0:05:04]} 22. dxe5 {[%emt 0:02:39]} Ng4 {[%emt 0:02:00]} 23. Rh3 {[%emt 0:00:23]} Nxe5 {[%emt 0:00:53]} 24. fxe5 {[%emt 0:00:39]} Qxg5+ {[%emt 0:00:09]} 25. Rg3 {[%emt 0:00:25]} Qxe5 {[%emt 0:00:05]} 26. Nd4 {[%emt 0:01:48]} Rf6 {[%emt 0:00:16]} 27. Qb3 {[%emt 0:04:00]} Raf8 {[%emt 0:00:21]} 28. Rc2 {[%emt 0:00:02]} Qd6 {[%emt 0:01:57]} 29. Rf3 {[%emt 0:04:44]} Qe5 {[%emt 0:02:25]} 30. Qxb7 {[%emt 0:01:34]} R8f7 {[%emt 0:03:10]} 31. Qc7 {[%emt 0:03:16]} Qh5 {[%emt 0:01:10]} 32. Rxf6 {[%emt 0:02:09]} Rxf6 {[%emt 0:00:37]} 33. Qg3 {[%emt 0:02:43]} e5 {[%emt 0:00:10]} 34. Be2 {[%emt 0:00:35]} Bh3+ {[%emt 0:01:48]} 35. Qxh3 {[%emt 0:00:54]} Rf2+ {[%emt 0:01:24]} 36. Kg3 {[%emt 0:00:30]} Qxh3+ {[%emt 0:00:05]} 37. Kxh3 {[%emt 0:00:10]} exd4 {[%emt 0:00:11]} 38. exd4 {[%emt 0:00:12]} Kg7 {[%emt 0:00:24]} 39. Kg3 {[%emt 0:00:37]} Rf6 {[%emt 0:00:03]} 40. Rc7+ {[%emt 0:00:00]} Kh6 {[%emt 0:00:00]} 41. Bf3 {[%emt 0:02:12]} Re6 {[%emt 0:01:21]} 42. Rc5 {[%emt 0:01:21]} g5 {[%emt 0:00:24]} 43. Rxd5 {[%emt 0:01:08]} Kg6 {[%emt 0:00:10]} 44. Rc5 {[%emt 0:00:42]} h5 {[%emt 0:02:03]} 45. Rc6 {[%emt 0:00:12]} Rxc6 {[%emt 0:00:14]} 46. Bxc6 {[%emt 0:00:07]} Kf5 {[%emt 0:00:04]} 47. b4 {[%emt 0:00:42]} h4+ {[%emt 0:00:46]} 48. Kh3 {[%emt 0:00:10]} Kf4 {[%emt 0:00:26]} 49. Bb7 {[%emt 0:00:23]} 1-0

[Event "XVI Calvia Amateur Open 2019"]
[Site "Calvia"]
[Date "2019.10.07"]
[Round "3.5"]
[White "Burdik, Lubomir"]
[Black "Ermachenko, Manuel"]
[Result "0-1"]
[ECO "D80"]
[WhiteElo "2132"]
[BlackElo "1968"]
[Annotator "ChessBase"]
[PlyCount "48"]
[EventDate "2019.10.05"]
[EventType "swiss"]
[EventCountry "ESP"]
[SourceTitle "playchess.com"]
[Source "ChessBase"]
[SourceQuality "1"]
[TimeControl "40/5400+30:900+30"]

1. Nf3 {[%emt 0:00:00]} Nf6 {[%emt 0:00:00]} 2. c4 {[%emt 0:00:00]} g6 {[%emt 0:00:02]} 3. Nc3 {[%emt 0:00:00]} d5 {[%emt 0:01:02]} 4. d4 {[%emt 0:01:58]} Bg7 {[%emt 0:00:16]} 5. Bg5 {[%emt 0:00:35]} Ne4 {[%emt 0:00:54]} 6. Bf4 {[%emt 0:00:19]} Nxc3 {[%emt 0:01:58]} 7. bxc3 {[%emt 0:00:07]} O-O {[%emt 0:01:45]} 8. e3 {[%emt 0:00:26]} c5 {[%emt 0:00:57]} 9. Qb3 {[%emt 0:06:35]} dxc4 {[%emt 0:01:43]} 10. Bxc4 {[%emt 0:00:13]} cxd4 {[%emt 0:00:37]} 11. cxd4 {[%emt 0:04:45]} Qa5+ {[%emt 0:03:39]} 12. Ke2 {[%emt 0:02:08]} Nc6 {[%emt 0:04:45]} 13. Rhd1 {[%emt 0:16:59]} Qh5 {[%emt 0:18:51]} 14. Qb5 {[%emt 0:02:49]} e5 {[%emt 0:05:13]} 15. dxe5 {[%emt 0:01:58]} Bg4 {[%emt 0:09:52]} 16. Rac1 {[%emt 0:13:17]} Bxe5 {[%emt 0:16:03]} 17. Rd5 {[%emt 0:02:54]} Rae8 {[%emt 0:05:21]} 18. Rcd1 {[%emt 0:08:20]} Re7 {[%emt 0:05:23]} 19. Rc5 {[%emt 0:09:43]} Qf5 {[%emt 0:04:50]} 20. h3 {[%emt 0:07:19]} Bxf3+ {[%emt 0:00:58]} 21. gxf3 {[%emt 0:00:06]} Qc2+ {[%emt 0:00:37]} 22. Rd2 {[%emt 0:00:48]} Nd4+ {[%emt 0:00:27]} 23. Kf1 {[%emt 0:03:40]} Qc1+ {[%emt 0:01:09]} 24. Kg2 {[%emt 0:00:13]} Nxb5 {[%emt 0:05:16]} 0-1